{"text_format":"3","workbook":"xlsx","n_sheets":1,"sheets":["Ngân sách gia đình hàng tháng"],"read":"whole","date_system":"1900"}

{"sheet":"Ngân sách gia đình hàng tháng","index":0,"n_rows":67,"n_cols":10,"rows_kept":67}
[null,"Ngân sách gia đình hàng tháng"]
[null,"Bảng tóm tắt","Tổng\nChi phí dự kiến","Tổng\nChi phí thực tế","Tổng\nChênh lệch",null,"Nguồn thu nhập hàng tháng dự kiến","Số lượng"]
[null,null,{"$f":"Nhà_ở[[#Totals],[Dự kiến\nChi phí]]+Phương_tiện_đi_lại[[#Totals],[Dự kiến\nChi phí]]+Bảo_hiểm[[#Totals],[Dự kiến\nChi phí]]+Thực_phẩm[[#Totals],[Dự kiến\nChi phí]]+Con_cái[[#Totals],[Dự kiến\nChi phí]]+Pháp_lý[[#Totals],[Dự kiến\nChi phí]]+Tiết_kiệm[[#Totals],[Dự kiến\nChi phí]]+Khoản_vay[[#Totals],[Dự kiến\nChi phí]]+Giải_trí[[#Totals],[Dự kiến\nChi phí]]+Thuế[[#Totals],[Dự kiến \nChi phí]]+Chăm_sóc_cá_nhân[[#Totals],[Dự kiến\nChi phí]]+Vật_nuôi[[#Totals],[Dự kiến\nChi phí]]+Quà_tặng[[#Totals],[Dự kiến\nChi phí]]","v":{"v":1203,"d":"1,203 ₫"}},{"$f":"Nhà_ở[[#Totals],[Thực tế\nChi phí]]+Phương_tiện_đi_lại[[#Totals],[Thực tế\nChi phí]]+Bảo_hiểm[[#Totals],[Thực tế\nChi phí]]+Thực_phẩm[[#Totals],[Thực tế\nChi phí]]+Con_cái[[#Totals],[Thực tế\nChi phí]]+Pháp_lý[[#Totals],[Thực tế\nChi phí]]+Tiết_kiệm[[#Totals],[Thực tế\nChi phí]]+Khoản_vay[[#Totals],[Thực tế\nChi phí]]+Giải_trí[[#Totals],[Thực tế\nChi phí]]+Thuế[[#Totals],[Thực tế \nChi phí]]+Chăm_sóc_cá_nhân[[#Totals],[Thực tế\nChi phí]]+Vật_nuôi[[#Totals],[Thực tế\nChi phí]]+Quà_tặng[[#Totals],[Thực tế\nChi phí]]","v":{"v":1317,"d":"1,317 ₫"}},{"$f":"Nhà_ở[[#Totals],[Chênh lệch]]+Phương_tiện_đi_lại[[#Totals],[Chênh lệch]]+Bảo_hiểm[[#Totals],[Chênh lệch]]+Thực_phẩm[[#Totals],[Chênh lệch]]+Con_cái[[#Totals],[Chênh lệch]]+Pháp_lý[[#Totals],[Chênh lệch]]+Tiết_kiệm[[#Totals],[Chênh lệch]]+Khoản_vay[[#Totals],[Chênh lệch]]+Giải_trí[[#Totals],[Chênh lệch]]+Thuế[[#Totals],[Chênh lệch]]+Chăm_sóc_cá_nhân[[#Totals],[Chênh lệch]]+Vật_nuôi[[#Totals],[Chênh lệch]]+Quà_tặng[[#Totals],[Chênh lệch]]","v":{"v":-114,"d":"-114 ₫"}},null,"Thu nhập 1",{"v":4000,"d":"4,000 ₫"}]
[{"$nulls":6},"Thu nhập 2",{"v":1200,"d":"1,200 ₫"}]
[null,"Nhà ở","Dự kiến\nChi phí","Thực tế\nChi phí","Chênh lệch",null,"Thu nhập thêm",{"v":300,"d":"300 ₫"}]
[null,"Tiền thế chấp hoặc tiền thuê",{"v":1000,"d":"1,000 ₫"},{"v":1000,"d":"1,000 ₫"},{"$f":"Nhà_ở[Dự kiến\nChi phí]-Nhà_ở[Thực tế\nChi phí]","v":{"v":0,"d":"0 ₫"}},null,"Tổng thu nhập hàng tháng",{"$f":"SUM(H3:H5)","v":{"v":5500,"d":"5,500 ₫"}}]
[null,"Tiền thế chấp hoặc tiền thuê phụ",{"v":0,"d":"0 ₫"},{"v":0,"d":"0 ₫"},{"$f":"Nhà_ở[Dự kiến\nChi phí]-Nhà_ở[Thực tế\nChi phí]","v":{"v":0,"d":"0 ₫"}}]
[null,"Điện thoại",{"v":62,"d":"62 ₫"},{"v":100,"d":"100 ₫"},{"$f":"Nhà_ở[Dự kiến\nChi phí]-Nhà_ở[Thực tế\nChi phí]","v":{"v":-38,"d":"-38 ₫"}},null,"Nguồn thu nhập hàng tháng thực tế","Số tiền"]
[null,"Điện",{"v":44,"d":"44 ₫"},{"v":125,"d":"125 ₫"},{"$f":"Nhà_ở[Dự kiến\nChi phí]-Nhà_ở[Thực tế\nChi phí]","v":{"v":-81,"d":"-81 ₫"}},null,"Thu nhập 1",{"v":4000,"d":"4,000 ₫"}]
[null,"Khí đốt",{"v":22,"d":"22 ₫"},{"v":35,"d":"35 ₫"},{"$f":"Nhà_ở[Dự kiến\nChi phí]-Nhà_ở[Thực tế\nChi phí]","v":{"v":-13,"d":"-13 ₫"}},null,"Thu nhập 2",{"v":1200,"d":"1,200 ₫"}]
[null,"Nước và nước thải",{"v":8,"d":"8 ₫"},{"v":8,"d":"8 ₫"},{"$f":"Nhà_ở[Dự kiến\nChi phí]-Nhà_ở[Thực tế\nChi phí]","v":{"v":0,"d":"0 ₫"}},null,"Thu nhập thêm",{"v":300,"d":"300 ₫"}]
[null,"Cáp",{"v":34,"d":"34 ₫"},{"v":39,"d":"39 ₫"},{"$f":"Nhà_ở[Dự kiến\nChi phí]-Nhà_ở[Thực tế\nChi phí]","v":{"v":-5,"d":"-5 ₫"}},null,"Tổng thu nhập hàng tháng",{"$f":"SUM(H9:H11)","v":{"v":5500,"d":"5,500 ₫"}}]
[null,"Loại bỏ rác thải",{"v":10,"d":"10 ₫"},{"v":10,"d":"10 ₫"},{"$f":"Nhà_ở[Dự kiến\nChi phí]-Nhà_ở[Thực tế\nChi phí]","v":{"v":0,"d":"0 ₫"}}]
[null,"Bảo trì hoặc sửa chữa",{"v":23,"d":"23 ₫"},{"v":0,"d":"0 ₫"},{"$f":"Nhà_ở[Dự kiến\nChi phí]-Nhà_ở[Thực tế\nChi phí]","v":{"v":23,"d":"23 ₫"}},null,"Số dư","Số tiền"]
[null,"Nhu yếu phẩm",{"v":0,"d":"0 ₫"},{"v":0,"d":"0 ₫"},{"$f":"Nhà_ở[Dự kiến\nChi phí]-Nhà_ở[Thực tế\nChi phí]","v":{"v":0,"d":"0 ₫"}},null,"Số dư dự kiến",{"$f":"SUM(H6-'Ngân sách gia đình hàng tháng'!$C$3:$C$3)","v":{"v":4297,"d":"4,297 ₫"}}]
[null,"Khác",{"v":0,"d":"0 ₫"},{"v":0,"d":"0 ₫"},{"$f":"Nhà_ở[Dự kiến\nChi phí]-Nhà_ở[Thực tế\nChi phí]","v":{"v":0,"d":"0 ₫"}},null,"Số dư thực tế",{"$f":"SUM(H12-D3)","v":{"v":4183,"d":"4,183 ₫"}}]
[null,"Tổng",{"$f":"SUBTOTAL(109,Nhà_ở[Dự kiến\nChi phí])","v":{"v":1203,"d":"1,203 ₫"}},{"$f":"SUBTOTAL(109,Nhà_ở[Thực tế\nChi phí])","v":{"v":1317,"d":"1,317 ₫"}},{"$f":"SUBTOTAL(109,Nhà_ở[Chênh lệch])","v":{"v":-114,"d":"-114 ₫"}},null,"Chênh lệch",{"$f":"SUM(H16-H15)","v":{"v":-114,"d":"-114 ₫"}}]
[]
[null,"Phương_tiện_đi_lại","Dự kiến\nChi phí","Thực tế\nChi phí","Chênh lệch",null,"Khoản_vay","Dự kiến\nChi phí","Thực tế\nChi phí","Chênh lệch"]
[null,"Khoản thanh toán phương tiện đi lại 1",null,null,{"$f":"Phương_tiện_đi_lại[Dự kiến\nChi phí]-Phương_tiện_đi_lại[Thực tế\nChi phí]","v":{"v":0,"d":"0 ₫"}},null,"Cá nhân",null,null,{"$f":"Khoản_vay[Dự kiến\nChi phí]-Khoản_vay[Thực tế\nChi phí]","v":{"v":0,"d":"0 ₫"}}]
[null,"Khoản thanh toán phương tiện đi lại 2",null,null,{"$f":"Phương_tiện_đi_lại[Dự kiến\nChi phí]-Phương_tiện_đi_lại[Thực tế\nChi phí]","v":{"v":0,"d":"0 ₫"}},null,"Học viên",null,null,{"$f":"Khoản_vay[Dự kiến\nChi phí]-Khoản_vay[Thực tế\nChi phí]","v":{"v":0,"d":"0 ₫"}}]
[null,"Tiền đi xe buýt/taxi",null,null,{"$f":"Phương_tiện_đi_lại[Dự kiến\nChi phí]-Phương_tiện_đi_lại[Thực tế\nChi phí]","v":{"v":0,"d":"0 ₫"}},null,"Thẻ tín dụng",null,null,{"$f":"Khoản_vay[Dự kiến\nChi phí]-Khoản_vay[Thực tế\nChi phí]","v":{"v":0,"d":"0 ₫"}}]
[null,"Bảo hiểm",null,null,{"$f":"Phương_tiện_đi_lại[Dự kiến\nChi phí]-Phương_tiện_đi_lại[Thực tế\nChi phí]","v":{"v":0,"d":"0 ₫"}},null,"Thẻ tín dụng",null,null,{"$f":"Khoản_vay[Dự kiến\nChi phí]-Khoản_vay[Thực tế\nChi phí]","v":{"v":0,"d":"0 ₫"}}]
[null,"Cấp phép",null,null,{"$f":"Phương_tiện_đi_lại[Dự kiến\nChi phí]-Phương_tiện_đi_lại[Thực tế\nChi phí]","v":{"v":0,"d":"0 ₫"}},null,"Thẻ tín dụng",null,null,{"$f":"Khoản_vay[Dự kiến\nChi phí]-Khoản_vay[Thực tế\nChi phí]","v":{"v":0,"d":"0 ₫"}}]
[null,"Nhiên liệu",null,null,{"$f":"Phương_tiện_đi_lại[Dự kiến\nChi phí]-Phương_tiện_đi_lại[Thực tế\nChi phí]","v":{"v":0,"d":"0 ₫"}},null,"Khác",null,null,{"$f":"Khoản_vay[Dự kiến\nChi phí]-Khoản_vay[Thực tế\nChi phí]","v":{"v":0,"d":"0 ₫"}}]
[null,"Bảo trì",null,null,{"$f":"Phương_tiện_đi_lại[Dự kiến\nChi phí]-Phương_tiện_đi_lại[Thực tế\nChi phí]","v":{"v":0,"d":"0 ₫"}},null,"Tổng",{"$f":"SUBTOTAL(109,Khoản_vay[Dự kiến\nChi phí])","v":{"v":0,"d":"0 ₫"}},{"$f":"SUBTOTAL(109,Khoản_vay[Thực tế\nChi phí])","v":{"v":0,"d":"0 ₫"}},{"$f":"SUBTOTAL(109,Khoản_vay[Chênh lệch])","v":{"v":0,"d":"0 ₫"}}]
[null,"Khác",null,null,{"$f":"Phương_tiện_đi_lại[Dự kiến\nChi phí]-Phương_tiện_đi_lại[Thực tế\nChi phí]","v":{"v":0,"d":"0 ₫"}}]
[null,"Tổng",{"$f":"SUBTOTAL(109,Phương_tiện_đi_lại[Dự kiến\nChi phí])","v":{"v":0,"d":"0 ₫"}},{"$f":"SUBTOTAL(109,Phương_tiện_đi_lại[Thực tế\nChi phí])","v":{"v":0,"d":"0 ₫"}},{"$f":"SUBTOTAL(109,Phương_tiện_đi_lại[Chênh lệch])","v":{"v":0,"d":"0 ₫"}},null,"Giải_trí","Dự kiến\nChi phí","Thực tế\nChi phí","Chênh lệch"]
[{"$nulls":6},"Video/DVD",null,null,{"$f":"Giải_trí[Dự kiến\nChi phí]-Giải_trí[Thực tế\nChi phí]","v":{"v":0,"d":"0 ₫"}}]
[null,"Bảo_hiểm","Dự kiến\nChi phí","Thực tế\nChi phí","Chênh lệch",null,"CD",null,null,{"$f":"Giải_trí[Dự kiến\nChi phí]-Giải_trí[Thực tế\nChi phí]","v":{"v":0,"d":"0 ₫"}}]
[null,"Nhà",null,null,{"$f":"Bảo_hiểm[Dự kiến\nChi phí]-Bảo_hiểm[Thực tế\nChi phí]","v":{"v":0,"d":"0 ₫"}},null,"Phim",null,null,{"$f":"Giải_trí[Dự kiến\nChi phí]-Giải_trí[Thực tế\nChi phí]","v":{"v":0,"d":"0 ₫"}}]
[null,"Sức khỏe",null,null,{"$f":"Bảo_hiểm[Dự kiến\nChi phí]-Bảo_hiểm[Thực tế\nChi phí]","v":{"v":0,"d":"0 ₫"}},null,"Buổi hòa nhạc",null,null,{"$f":"Giải_trí[Dự kiến\nChi phí]-Giải_trí[Thực tế\nChi phí]","v":{"v":0,"d":"0 ₫"}}]
[null,"Đời sống",null,null,{"$f":"Bảo_hiểm[Dự kiến\nChi phí]-Bảo_hiểm[Thực tế\nChi phí]","v":{"v":0,"d":"0 ₫"}},null,"Sự kiện thể thao",null,null,{"$f":"Giải_trí[Dự kiến\nChi phí]-Giải_trí[Thực tế\nChi phí]","v":{"v":0,"d":"0 ₫"}}]
[null,"Khác",null,null,{"$f":"Bảo_hiểm[Dự kiến\nChi phí]-Bảo_hiểm[Thực tế\nChi phí]","v":{"v":0,"d":"0 ₫"}},null,"Nhà hát",null,null,{"$f":"Giải_trí[Dự kiến\nChi phí]-Giải_trí[Thực tế\nChi phí]","v":{"v":0,"d":"0 ₫"}}]
[null,"Tổng",{"$f":"SUBTOTAL(109,Bảo_hiểm[Dự kiến\nChi phí])","v":{"v":0,"d":"0 ₫"}},{"$f":"SUBTOTAL(109,Bảo_hiểm[Thực tế\nChi phí])","v":{"v":0,"d":"0 ₫"}},{"$f":"SUBTOTAL(109,Bảo_hiểm[Chênh lệch])","v":{"v":0,"d":"0 ₫"}},null,"Khác",null,null,{"$f":"Giải_trí[Dự kiến\nChi phí]-Giải_trí[Thực tế\nChi phí]","v":{"v":0,"d":"0 ₫"}}]
[{"$nulls":6},"Tổng",{"$f":"SUBTOTAL(109,Giải_trí[Dự kiến\nChi phí])","v":{"v":0,"d":"0 ₫"}},{"$f":"SUBTOTAL(109,Giải_trí[Thực tế\nChi phí])","v":{"v":0,"d":"0 ₫"}},{"$f":"SUBTOTAL(109,Giải_trí[Chênh lệch])","v":{"v":0,"d":"0 ₫"}}]
[null,"Thực_phẩm","Dự kiến\nChi phí","Thực tế\nChi phí","Chênh lệch"]
[null,"Tạp phẩm",null,null,{"$f":"Thực_phẩm[Dự kiến\nChi phí]-Thực_phẩm[Thực tế\nChi phí]","v":{"v":0,"d":"0 ₫"}},null,"Thuế","Dự kiến \nChi phí","Thực tế \nChi phí","Chênh lệch"]
[null,"Ăn ngoài",null,null,{"$f":"Thực_phẩm[Dự kiến\nChi phí]-Thực_phẩm[Thực tế\nChi phí]","v":{"v":0,"d":"0 ₫"}},null,"Liên bang",null,null,{"$f":"Thuế[Dự kiến \nChi phí]-Thuế[Thực tế \nChi phí]","v":{"v":0,"d":"0 ₫"}}]
[null,"Khác",null,null,{"$f":"Thực_phẩm[Dự kiến\nChi phí]-Thực_phẩm[Thực tế\nChi phí]","v":{"v":0,"d":"0 ₫"}},null,"Tiểu bang",null,null,{"$f":"Thuế[Dự kiến \nChi phí]-Thuế[Thực tế \nChi phí]","v":{"v":0,"d":"0 ₫"}}]
[null,"Tổng",{"$f":"SUBTOTAL(109,Thực_phẩm[Dự kiến\nChi phí])","v":{"v":0,"d":"0 ₫"}},{"$f":"SUBTOTAL(109,Thực_phẩm[Thực tế\nChi phí])","v":{"v":0,"d":"0 ₫"}},{"$f":"SUBTOTAL(109,Thực_phẩm[Chênh lệch])","v":{"v":0,"d":"0 ₫"}},null,"Địa phương",null,null,{"$f":"Thuế[Dự kiến \nChi phí]-Thuế[Thực tế \nChi phí]","v":{"v":0,"d":"0 ₫"}}]
[{"$nulls":6},"Khác",null,null,{"$f":"Thuế[Dự kiến \nChi phí]-Thuế[Thực tế \nChi phí]","v":{"v":0,"d":"0 ₫"}}]
[null,"Con_cái","Dự kiến\nChi phí","Thực tế\nChi phí","Chênh lệch",null,"Tổng",{"$f":"SUBTOTAL(109,Thuế[Dự kiến \nChi phí])","v":{"v":0,"d":"0 ₫"}},{"$f":"SUBTOTAL(109,Thuế[Thực tế \nChi phí])","v":{"v":0,"d":"0 ₫"}},{"$f":"SUBTOTAL(109,Thuế[Chênh lệch])","v":{"v":0,"d":"0 ₫"}}]
[null,"Y tế",null,null,{"$f":"Con_cái[Dự kiến\nChi phí]-Con_cái[Thực tế\nChi phí]","v":{"v":0,"d":"0 ₫"}}]
[null,"Trang phục",null,null,{"$f":"Con_cái[Dự kiến\nChi phí]-Con_cái[Thực tế\nChi phí]","v":{"v":0,"d":"0 ₫"}},null,"Chăm sóc Cá nhân","Dự kiến\nChi phí","Thực tế\nChi phí","Chênh lệch"]
[null,"Học phí",null,null,{"$f":"Con_cái[Dự kiến\nChi phí]-Con_cái[Thực tế\nChi phí]","v":{"v":0,"d":"0 ₫"}},null,"Y tế",null,null,{"$f":"Chăm_sóc_cá_nhân[Dự kiến\nChi phí]-Chăm_sóc_cá_nhân[Thực tế\nChi phí]","v":{"v":0,"d":"0 ₫"}}]
[null,"Dụng cụ học tập",null,null,{"$f":"Con_cái[Dự kiến\nChi phí]-Con_cái[Thực tế\nChi phí]","v":{"v":0,"d":"0 ₫"}},null,"Tóc/móng",null,null,{"$f":"Chăm_sóc_cá_nhân[Dự kiến\nChi phí]-Chăm_sóc_cá_nhân[Thực tế\nChi phí]","v":{"v":0,"d":"0 ₫"}}]
[null,"Thuế hoặc phí tổ chức",null,null,{"$f":"Con_cái[Dự kiến\nChi phí]-Con_cái[Thực tế\nChi phí]","v":{"v":0,"d":"0 ₫"}},null,"Trang phục",null,null,{"$f":"Chăm_sóc_cá_nhân[Dự kiến\nChi phí]-Chăm_sóc_cá_nhân[Thực tế\nChi phí]","v":{"v":0,"d":"0 ₫"}}]
[null,"Tiền ăn trưa",null,null,{"$f":"Con_cái[Dự kiến\nChi phí]-Con_cái[Thực tế\nChi phí]","v":{"v":0,"d":"0 ₫"}},null,"Giặt khô",null,null,{"$f":"Chăm_sóc_cá_nhân[Dự kiến\nChi phí]-Chăm_sóc_cá_nhân[Thực tế\nChi phí]","v":{"v":0,"d":"0 ₫"}}]
[null,"Chăm sóc trẻ em",null,null,{"$f":"Con_cái[Dự kiến\nChi phí]-Con_cái[Thực tế\nChi phí]","v":{"v":0,"d":"0 ₫"}},null,"Phòng tập",null,null,{"$f":"Chăm_sóc_cá_nhân[Dự kiến\nChi phí]-Chăm_sóc_cá_nhân[Thực tế\nChi phí]","v":{"v":0,"d":"0 ₫"}}]
[null,"Đồ chơi/trò chơi",null,null,{"$f":"Con_cái[Dự kiến\nChi phí]-Con_cái[Thực tế\nChi phí]","v":{"v":0,"d":"0 ₫"}},null,"Phí tổ chức",null,null,{"$f":"Chăm_sóc_cá_nhân[Dự kiến\nChi phí]-Chăm_sóc_cá_nhân[Thực tế\nChi phí]","v":{"v":0,"d":"0 ₫"}}]
[null,"Khác",null,null,{"$f":"Con_cái[Dự kiến\nChi phí]-Con_cái[Thực tế\nChi phí]","v":{"v":0,"d":"0 ₫"}},null,"Khác",null,null,{"$f":"Chăm_sóc_cá_nhân[Dự kiến\nChi phí]-Chăm_sóc_cá_nhân[Thực tế\nChi phí]","v":{"v":0,"d":"0 ₫"}}]
[null,"Tổng",{"$f":"SUBTOTAL(109,Con_cái[Dự kiến\nChi phí])","v":{"v":0,"d":"0 ₫"}},{"$f":"SUBTOTAL(109,Con_cái[Thực tế\nChi phí])","v":{"v":0,"d":"0 ₫"}},{"$f":"SUBTOTAL(109,Con_cái[Chênh lệch])","v":{"v":0,"d":"0 ₫"}},null,"Tổng",{"$f":"SUBTOTAL(109,Chăm_sóc_cá_nhân[Dự kiến\nChi phí])","v":{"v":0,"d":"0 ₫"}},{"$f":"SUBTOTAL(109,Chăm_sóc_cá_nhân[Thực tế\nChi phí])","v":{"v":0,"d":"0 ₫"}},{"$f":"SUBTOTAL(109,Chăm_sóc_cá_nhân[Chênh lệch])","v":{"v":0,"d":"0 ₫"}}]
[]
[null,"Pháp_ý","Dự kiến\nChi phí","Thực tế\nChi phí","Chênh lệch",null,"Vật_nuôi","Dự kiến\nChi phí","Thực tế\nChi phí","Chênh lệch"]
[null,"Luật sư",null,null,{"$f":"Pháp_lý[Dự kiến\nChi phí]-Pháp_lý[Thực tế\nChi phí]","v":{"v":0,"d":"0 ₫"}},null,"Thực_phẩm",null,null,{"$f":"Vật_nuôi[Dự kiến\nChi phí]-Vật_nuôi[Thực tế\nChi phí]","v":{"v":0,"d":"0 ₫"}}]
[null,"Tiền cấp dưỡng",null,null,{"$f":"Pháp_lý[Dự kiến\nChi phí]-Pháp_lý[Thực tế\nChi phí]","v":{"v":0,"d":"0 ₫"}},null,"Y tế",null,null,{"$f":"Vật_nuôi[Dự kiến\nChi phí]-Vật_nuôi[Thực tế\nChi phí]","v":{"v":0,"d":"0 ₫"}}]
[null,"Khoản thanh toán",null,null,{"$f":"Pháp_lý[Dự kiến\nChi phí]-Pháp_lý[Thực tế\nChi phí]","v":{"v":0,"d":"0 ₫"}},null,"Chăm sóc vật nuôi",null,null,{"$f":"Vật_nuôi[Dự kiến\nChi phí]-Vật_nuôi[Thực tế\nChi phí]","v":{"v":0,"d":"0 ₫"}}]
[null,"Khác",null,null,{"$f":"Pháp_lý[Dự kiến\nChi phí]-Pháp_lý[Thực tế\nChi phí]","v":{"v":0,"d":"0 ₫"}},null,"Đồ chơi",null,null,{"$f":"Vật_nuôi[Dự kiến\nChi phí]-Vật_nuôi[Thực tế\nChi phí]","v":{"v":0,"d":"0 ₫"}}]
[null,"Tổng",{"$f":"SUBTOTAL(109,Pháp_lý[Dự kiến\nChi phí])","v":{"v":0,"d":"0 ₫"}},{"$f":"SUBTOTAL(109,Pháp_lý[Thực tế\nChi phí])","v":{"v":0,"d":"0 ₫"}},{"$f":"SUBTOTAL(109,Pháp_lý[Chênh lệch])","v":{"v":0,"d":"0 ₫"}},null,"Khác",null,null,{"$f":"Vật_nuôi[Dự kiến\nChi phí]-Vật_nuôi[Thực tế\nChi phí]","v":{"v":0,"d":"0 ₫"}}]
[{"$nulls":6},"Tổng",{"$f":"SUBTOTAL(109,Vật_nuôi[Dự kiến\nChi phí])","v":{"v":0,"d":"0 ₫"}},{"$f":"SUBTOTAL(109,Vật_nuôi[Thực tế\nChi phí])","v":{"v":0,"d":"0 ₫"}},{"$f":"SUBTOTAL(109,Vật_nuôi[Chênh lệch])","v":{"v":0,"d":"0 ₫"}}]
[null,"Khoản tiết kiệm/Khoản đầu tư","Dự kiến\nChi phí","Thực tế\nChi phí","Chênh lệch"]
[null,"Tài khoản hưu trí",null,null,{"$f":"Tiết_kiệm[Dự kiến\nChi phí]-Tiết_kiệm[Thực tế\nChi phí]","v":{"v":0,"d":"0 ₫"}},null,"Quà tặng và Khoản quyên góp","Dự kiến\nChi phí","Thực tế\nChi phí","Chênh lệch"]
[null,"Tài khoản đầu tư",null,null,{"$f":"Tiết_kiệm[Dự kiến\nChi phí]-Tiết_kiệm[Thực tế\nChi phí]","v":{"v":0,"d":"0 ₫"}},null,"Khoản từ thiện 1",null,null,{"$f":"Quà_tặng[Dự kiến\nChi phí]-Quà_tặng[Thực tế\nChi phí]","v":{"v":0,"d":"0 ₫"}}]
[null,"Đại học",null,null,{"$f":"Tiết_kiệm[Dự kiến\nChi phí]-Tiết_kiệm[Thực tế\nChi phí]","v":{"v":0,"d":"0 ₫"}},null,"Khoản từ thiện 2",null,null,{"$f":"Quà_tặng[Dự kiến\nChi phí]-Quà_tặng[Thực tế\nChi phí]","v":{"v":0,"d":"0 ₫"}}]
[null,"Khác",null,null,{"$f":"Tiết_kiệm[Dự kiến\nChi phí]-Tiết_kiệm[Thực tế\nChi phí]","v":{"v":0,"d":"0 ₫"}},null,"Khoản từ thiện 3",null,null,{"$f":"Quà_tặng[Dự kiến\nChi phí]-Quà_tặng[Thực tế\nChi phí]","v":{"v":0,"d":"0 ₫"}}]
[null,"Tổng",{"$f":"SUBTOTAL(109,Tiết_kiệm[Dự kiến\nChi phí])","v":{"v":0,"d":"0 ₫"}},{"$f":"SUBTOTAL(109,Tiết_kiệm[Thực tế\nChi phí])","v":{"v":0,"d":"0 ₫"}},{"$f":"SUBTOTAL(109,Tiết_kiệm[Chênh lệch])","v":{"v":0,"d":"0 ₫"}},null,"Tổng",{"$f":"SUBTOTAL(109,Quà_tặng[Dự kiến\nChi phí])","v":{"v":0,"d":"0 ₫"}},{"$f":"SUBTOTAL(109,Quà_tặng[Thực tế\nChi phí])","v":{"v":0,"d":"0 ₫"}},{"$f":"SUBTOTAL(109,Quà_tặng[Chênh lệch])","v":{"v":0,"d":"0 ₫"}}]